fUSD/lending_fUSD_20251023
["ID","MTS","AMOUNT","RATE_DAILY","PERIOD"]
[392149080,1761211839858,-160.17732397,0.00044973,10]
[392149081,1761211839867,-160.17732397,0.00044973,10]
[392149082,1761211839877,-500.0,0.00044973,10]
[392149083,1761211839886,-160.16977216,0.00044973,10]
[392149084,1761211839895,-160.17732801,0.00044973,10]
[392149085,1761211839905,-160.177328,0.00044973,10]
[392149086,1761211839915,-500.0,0.00044973,10]
[392149087,1761211839924,-165.03398142,0.00044973,10]
[392149088,1761211839934,-500.0,0.00044973,10]
[392149089,1761211839944,-500.0,0.00044973,10]
[392149090,1761211839954,-150.0,0.00044973,3]
[392149091,1761211839966,-150.0,0.00044973,3]
[392149092,1761211839977,-500.0,0.00044973,3]
[392149093,1761211839988,-1491.08715838,0.00044975,120]
[392149094,1761211839999,-61615.6217372,0.00044975,120]
[392149095,1761211840011,-958.48597438,0.00044976,3]
[392149096,1761211840021,-3357.91556825,0.00044978,120]
[392149097,1761211840031,-958.48597438,0.00044979,3]
[392149098,1761211840040,-958.48597438,0.00044979,3]
[392149099,1761211840051,-958.48597438,0.0004498,3]
[392149100,1761211840061,-1491.08715838,0.0004498,120]
[392149101,1761211840072,-336.52547843,0.0004498,120]
[392149102,1761211840083,-14377.2896157,0.0004498,3]
[392149103,1761211840093,-1873.69640362,0.0004498,120]
[392149104,1761211840103,-535.2387442,0.00044981,120]
[392149105,1761211840113,-21689.44060545,0.00044982,120]
[392149106,1761211840123,-1491.08715838,0.00044982,120]
[392149107,1761211840133,-60735.22124375,0.00044983,120]
[392149108,1761211840142,-21689.44060545,0.00044983,120]
[392149109,1761211840153,-535.2387442,0.00044984,120]
[392149110,1761211840163,-1536.40374782,0.00044984,120]
[392149111,1761211840173,-609.47530246,0.00044984,120]
[392149112,1761211840183,-535.2387442,0.00044985,120]
[392149113,1761211840194,-6488.24842485,0.00044985,120]
[392149114,1761211840204,-21689.44060545,0.00044985,120]
[392149115,1761211840214,-1873.69640362,0.00044985,120]
[392149116,1761211840224,-1226.0,0.00044986,120]
[392149117,1761211840233,-28871.0,0.00044986,120]
[392149118,1761211840242,-21689.44060545,0.00044987,120]
[392149119,1761211840251,-1186.37455805,0.00044988,120]
[392149120,1761211840261,-958.48597438,0.00044989,3]
[392149121,1761211840271,-500.0,0.00044989,120]
[392149122,1761211840280,-500.0,0.00044989,120]
[392149123,1761211840290,-300.0,0.0004499,120]
[392149124,1761211840300,-150.0,0.0004499,120]
[392149125,1761211840310,-150.0,0.0004499,120]
[392149126,1761211840319,-150.0,0.0004499,120]
[392149127,1761211840328,-420.0,0.0004499,120]
[392149128,1761211840338,-3515.90533862,0.0004499,14]
[392149129,1761211840347,-284.44,0.0004499,7]
[392149130,1761211840357,-150.29,0.0004499,2]
[392149131,1761211840366,-150.29,0.0004499,2]
[392149132,1761211840376,-150.29,0.0004499,2]
[392149133,1761211840386,-150.29,0.0004499,2]
[392149134,1761211840396,-150.29,0.0004499,2]
[392149135,1761211840406,-150.29,0.0004499,2]
[392149136,1761211840416,-150.29,0.0004499,2]
[392149137,1761211840426,-150.29,0.0004499,2]
[392149138,1761211840436,-150.29,0.0004499,2]
[392149139,1761211840446,-150.29,0.0004499,2]
[392149140,1761211840455,-150.29,0.0004499,2]
[392149141,1761211840465,-150.29,0.0004499,2]
[392149142,1761211840475,-150.29,0.0004499,2]
[392149143,1761211840484,-150.29,0.0004499,2]
[392149144,1761211840494,-150.29,0.0004499,2]
[392149145,1761211840504,-150.29,0.0004499,2]
[392149146,1761211840514,-150.29,0.0004499,2]
[392149147,1761211840524,-150.29,0.0004499,2]
[392149148,1761211840535,-150.29,0.0004499,2]
[392149149,1761211840544,-150.29,0.0004499,2]
[392149150,1761211840556,-150.29,0.0004499,2]
[392149151,1761211840566,-150.29,0.0004499,2]
[392149152,1761211840575,-150.29,0.0004499,2]
[392149153,1761211840586,-150.29,0.0004499,2]
[392149154,1761211840595,-150.29,0.0004499,2]
[392149155,1761211840605,-150.29,0.0004499,2]
[392149156,1761211840615,-150.29,0.0004499,2]
[392149157,1761211840625,-150.29,0.0004499,2]
[392149158,1761211840635,-150.29,0.0004499,2]
[392149159,1761211840645,-150.29,0.0004499,2]
[392149160,1761211840654,-484.30456485,0.0004499,7]
[392149161,1761211840664,-150.29,0.0004499,2]
[392149162,1761211840675,-484.30456485,0.0004499,7]
[392149163,1761211840685,-150.29,0.0004499,2]
[392149164,1761211840695,-484.30456485,0.0004499,7]
[392149165,1761211840705,-150.29,0.0004499,2]
[392149166,1761211840715,-150.29,0.0004499,2]
[392149167,1761211840726,-150.29,0.0004499,2]
[392149168,1761211840736,-150.29,0.0004499,2]
[392149169,1761211840746,-150.29,0.0004499,2]
[392149170,1761211840755,-150.29,0.0004499,2]
[392149171,1761211840766,-150.29,0.0004499,2]
[392149172,1761211840776,-150.29,0.0004499,2]
[392149173,1761211840786,-150.29,0.0004499,2]
[392149174,1761211840797,-150.29,0.0004499,2]
[392149175,1761211840807,-150.29,0.0004499,2]
[392149176,1761211840818,-150.29,0.0004499,2]
[392149177,1761211840829,-150.29,0.0004499,2]
[392149178,1761211840842,-150.29,0.0004499,2]
[392149179,1761211840851,-150.29,0.0004499,2]
[392149180,1761211840863,-150.29,0.0004499,2]
[392149181,1761211840874,-150.29,0.0004499,2]
[392149182,1761211840884,-150.29,0.0004499,2]
[392149183,1761211840895,-150.29,0.0004499,2]
[392149184,1761211840907,-535.2387442,0.00044991,120]
[392149185,1761211840917,-609.47530246,0.00044993,120]
[392149186,1761211840928,-6488.24842485,0.00044993,120]
[392149187,1761211840939,-1491.08715838,0.00044994,120]
[392149188,1761211840949,-7181.10816809,0.00044995,120]
[392149189,1761211840959,-2000.0807868,0.00044996,120]
[392149190,1761211840968,-7181.10816809,0.00044996,120]
[392149191,1761211840978,-174.53803622,0.00044996,120]
[392149192,1761211840987,-2000.0807868,0.00044996,120]
[392149193,1761211840996,-500.0,0.00044998,120]
[392149194,1761211841005,-311.7843581,0.00044999,30]
[392149195,1761211841014,-492.94039131,0.00044999,120]
[392149196,1761211841023,-250.27196767,0.00044999,120]
[392149197,1761211841033,-493.0846453,0.00044999,120]
[392149198,1761211841043,-502.45000383,0.00044999,120]
[392149199,1761211841153,-496.64826387,0.00044999,120]
[392149200,1761211841163,-496.49625091,0.00044999,120]
[392149201,1761211841172,-499.44614306,0.00044999,120]
[392149202,1761211841181,-198.72188015,0.00044999,120]
[392149203,1761211841190,-509.5260509,0.00044999,120]
[392149204,1761211841199,-520.65216645,0.00044999,120]
[392149205,1761211841208,-500.0,0.00044999,30]
[392149206,1761211841218,-1055.99055337,0.00044999,60]
[392149207,1761211841227,-1055.99055337,0.00044999,60]
[392149208,1761211841236,-1055.99055336,0.00044999,60]
[392149209,1761211841246,-1055.99055337,0.00044999,60]
[392149210,1761211841255,-500.0,0.00044999,120]
[392149211,1761211841264,-500.0,0.00044999,120]
[392149212,1761211841274,-500.0,0.00044999,120]
[392149213,1761211841283,-2100.0,0.00044999,30]
[392149214,1761211841292,-2100.0,0.00044999,30]
[392149215,1761211841302,-500.0,0.00044999,120]
[392149216,1761211841311,-500.0,0.00044999,60]
[392149217,1761211841321,-634.62,0.00044999,120]
[392149218,1761211841331,-500.0,0.00044999,120]
[392149219,1761211841340,-579.83,0.00044999,120]
[392149220,1761211841349,-500.0,0.00044999,120]
[392149221,1761211841358,-500.0,0.00044999,120]
[392149222,1761211841368,-491.59924571,0.00044999,120]
[392149223,1761211841379,-499.74001188,0.00044999,120]
[392149224,1761211841388,-506.44304037,0.00044999,120]
[392149225,1761211841400,-516.9666162,0.00044999,120]
[392149226,1761211841411,-500.0,0.00044999,120]
[392149227,1761211841421,-493.04772946,0.00044999,120]
[392149228,1761211841430,-500.0,0.00044999,120]
[392149229,1761211841441,-500.0,0.00044999,120]
[392149230,1761211841452,-500.0,0.00044999,120]
[392149231,1761211841463,-500.0,0.00044999,120]
[392149232,1761211841472,-520.96,0.00044999,120]
[392149233,1761211841481,-500.0,0.00044999,120]
[392149234,1761211841491,-500.0,0.00044999,120]
[392149235,1761211841500,-500.0,0.00044999,120]
[392149236,1761211841510,-500.0,0.00044999,120]
[392149237,1761211841520,-500.0,0.00044999,120]
[392149238,1761211841532,-460.58635,0.00044999,120]
[392149239,1761211841544,-500.0,0.00044999,120]
[392149240,1761211841554,-500.0,0.00044999,120]
[392149241,1761211841563,-500.0,0.00044999,120]
[392149242,1761211841573,-500.0,0.00044999,120]
[392149243,1761211841583,-500.0,0.00044999,120]
[392149244,1761211841592,-500.0,0.00044999,2]
[392149245,1761211841602,-500.0,0.00044999,120]
[392149246,1761211841611,-500.0,0.00044999,120]
[392149247,1761211841620,-500.0,0.00044999,120]
[392149248,1761211841629,-618.05,0.00044999,120]
[392149249,1761211841639,-499.44541244,0.00044999,120]
[392149250,1761211841648,-220.30271091,0.00044999,120]
[392149251,1761211841658,-500.0,0.00044999,120]
[392149252,1761211841667,-500.0,0.00044999,120]
[392149253,1761211841676,-500.0,0.00044999,12]
[392149254,1761211841685,-300.0,0.00044999,120]
[392149255,1761211841695,-500.0,0.00044999,30]
[392149256,1761211841705,-500.0,0.00044999,30]
[392149257,1761211841715,-500.0,0.00044999,30]
[392149258,1761211841724,-500.0,0.00044999,30]
[392149259,1761211841734,-565.98304592,0.00044999,30]
[392149260,1761211841743,-500.0,0.00044999,120]
[392149261,1761211841752,-2400.00000485,0.00044999,30]
[392149262,1761211841762,-500.0,0.00044999,120]
[392149263,1761211841771,-500.0,0.00044999,120]
[392149264,1761211841781,-500.0,0.00044999,120]
[392149265,1761211841791,-500.0,0.00044999,120]
[392149266,1761211841800,-500.0,0.00044999,120]
[392149267,1761211841809,-500.0,0.00044999,120]
[392149268,1761211841819,-581.22513456,0.00044999,120]
[392149269,1761211841829,-500.0,0.00044999,120]
[392149270,1761211841841,-500.0,0.00044999,120]
[392149271,1761211841850,-500.0,0.00044999,120]
[392149272,1761211841859,-505.62774983,0.00044999,120]
[392149273,1761211841869,-493.62439752,0.00044999,120]
[392149274,1761211841879,-517.1153983,0.00044999,120]
[392149275,1761211841889,-500.0,0.00044999,120]
[392149276,1761211841898,-768.51,0.00044999,120]
[392149277,1761211841907,-500.0,0.00044999,120]
[392149278,1761211841917,-500.0,0.00044999,120]
[392149279,1761211841926,-500.0,0.00044999,120]
[392149280,1761211841935,-500.0,0.00044999,120]
[392149281,1761211841945,-500.0,0.00044999,120]
[392149282,1761211841955,-500.0,0.00044999,120]
[392149283,1761211841964,-500.0,0.00044999,120]
[392149284,1761211841974,-500.0,0.00044999,120]
[392149285,1761211841983,-500.0,0.00044999,120]
[392149286,1761211841992,-557.0,0.00044999,120]
[392149287,1761211842002,-500.0,0.00044999,120]
[392149288,1761211842011,-505.79,0.00044999,120]
[392149289,1761211842020,-500.0,0.00044999,120]
[392149290,1761211842030,-500.0,0.00044999,120]
[392149291,1761211842039,-500.0,0.00044999,120]
[392149292,1761211842050,-500.0,0.00044999,120]
[392149293,1761211842060,-500.0,0.00044999,120]
[392149294,1761211842068,-999.0,0.00044999,120]
[392149295,1761211842078,-500.0,0.00044999,120]
[392149296,1761211842088,-500.0,0.00044999,120]
[392149297,1761211842098,-500.0,0.00044999,120]
[392149298,1761211842108,-500.0,0.00044999,120]
[392149299,1761211842117,-493.71522133,0.00044999,120]
[392149300,1761211842127,-500.0,0.00044999,120]
[392149302,1761211842136,-500.0,0.00044999,120]
[392149303,1761211842145,-500.0,0.00044999,120]
[392149304,1761211842154,-500.0,0.00044999,120]
[392149305,1761211842164,-500.0,0.00044999,120]
[392149306,1761211842174,-1000.0,0.00044999,30]
[392149308,1761211842185,-500.0,0.00044999,120]
[392149310,1761211842194,-500.0,0.00044999,120]
[392149313,1761211842204,-500.0,0.00044999,120]
[392149316,1761211842213,-500.0,0.00044999,120]
[392149318,1761211842223,-527.05525158,0.00044999,120]
[392149319,1761211842232,-15000.0,0.00044999,120]
[392149320,1761211842242,-1000000.0,0.00045,120]
[392149321,1761211842252,-1234000.0,0.00045,120]
[392149322,1761211842263,-1000000.0,0.00045,120]
[392149323,1761211842272,-1000000.0,0.00045,120]
[392149324,1761211842283,-1000000.0,0.00045,120]
[392149325,1761211842292,-79444.55384107,0.00045,120]
[392149332,1761211842395,-500.0,0.00044898,120]
[392149333,1761211842404,-23.11991633,0.00045,120]
[392149335,1761211842415,-2369.31042821,0.00045,120]
[392149336,1761211842427,-285.35032063,0.00045,120]
[392149337,1761211842438,-3810.74823059,0.00045,120]
[392149338,1761211842449,-1725.419117,0.00045,120]
[392149339,1761211842471,-128299.93281418,0.00045,120]
[392149340,1761211842485,-18781.27240833,0.00045,120]
[392149341,1761211842501,-10430.37182276,0.00045,120]
[392149342,1761211842513,-2860.1578462,0.00045,120]
[392149343,1761211842576,-500.0,0.00044661,120]
[392149344,1761211842586,-500.0,0.00044661,120]
[392149345,1761211842597,-19.54386602,0.00044661,120]
[392149346,1761211842609,-480.45613398,0.00044661,120]
[392149347,1761211842619,-399.82266522,0.00044894,120]
[392149348,1761211842631,-100.17733478,0.00044894,120]
[392149349,1761211842642,-16849.01566776,0.00045,120]
[392149350,1761211842653,-6358.66997926,0.00045,120]
[392149351,1761211842682,-300.42878841,0.00045,120]
[392149352,1761211842849,-707.3898016,0.00045,120]
[392149353,1761211842861,-357.35700004,0.00045,120]
[392149354,1761211842872,-43556.85918378,0.00045,120]
[392149355,1761211842905,-19320.61759648,0.00045,120]
[392149361,1761211843818,-881.63290269,0.00045,120]
[392149365,1761211845741,-200.90864579,0.000449,9]
[392149366,1761211845751,-11404.05015414,0.00045,120]
[392149367,1761211845763,-652233.74218054,0.00045,120]
[392149368,1761211845772,-368022.08823426,0.00045,120]
[392149369,1761211845795,-517.48619392,0.00045,120]
[392149370,1761211852840,155.0,0.00041,90]
[392149371,1761211853189,156.0,0.00043151,90]
[392149372,1761211872641,759.0,0.00036566,10]
[392149374,1761211892419,168.0,0.00042375,2]
[392149375,1761211901472,500.0,0.00036466,2]
[392149380,1761212016298,-212.94723776,0.00024932,2]
[392149381,1761212021196,-153.91745581,0.00024932,2]
[392149382,1761212023245,-133.13530643,0.00024932,2]
[392149383,1761212023269,-143.9975388,0.00025977,2]
[392149384,1761212070513,464.13586362,0.00027397,120]
[392149393,1761212300528,-277.16581691,0.00028575,120]
[392149394,1761212303680,-388.91260334,0.00028575,120]
[392149395,1761212308118,-212.0,0.00028575,120]
[392149396,1761212309607,-152.4172722,0.00028575,120]
[392149397,1761212314020,-169.70952864,0.00028575,120]
[392149398,1761212314043,-195.0,0.00031432,120]
[392149399,1761212314069,-55.28390309,0.00031432,2]
[392149401,1761212331032,-163.1454749,0.00031432,2]
[392149402,1761212333224,-31.57062201,0.00031432,2]
[392149403,1761212333248,-195.0,0.00031555,120]
[392149404,1761212333269,-44.20162115,0.0003555,15]
[392149416,1761212483786,265.76,0.00013699,2]
[392149419,1761212495001,-219.81387356,0.00020187,2]
[392149421,1761212498441,-45.94612644,0.00020187,2]
[392149422,1761212498466,-230.22874136,0.00026676,2]
[392149440,1761212614914,-250.02420998,0.00024932,2]
[392149441,1761212617157,-179.0,0.00024932,2]
[392149442,1761212644923,-70.97579002,0.00024932,2]
[392149443,1761212644945,-35.53125864,0.00026676,2]
[392149444,1761212644967,-117.75378042,0.00027425,120]
[392149458,1761212750857,-77.24621958,0.00027425,120]
[392149459,1761212750876,-1717.74684224,0.00030167,120]
[392149460,1761212750896,-265.76,0.00033165,2]
[392149461,1761212750915,-555.79837885,0.0003555,15]
[392149462,1761212750934,-151.0,0.00036021,2]
[392149463,1761212750953,-244.52205152,0.00036021,2]
[392149464,1761212750973,-151.0,0.00036021,2]
[392149465,1761212750992,-237.66281573,0.00036365,2]
[392149466,1761212751011,-452.36511146,0.00036414,4]
[392149469,1761212814095,-184.14366213,0.00036414,4]
[392149470,1761212814122,-308.17412871,0.0003644,120]
[392149471,1761212829089,-80.50534398,0.0003644,120]
[392149472,1761212829111,-500.0,0.00036466,2]
[392149473,1761212829139,-473.0,0.00036513,3]
[392149474,1761212829164,-300.0,0.00036513,3]
[392149475,1761212829185,-1259.84059343,0.00036513,3]
[392149479,1761212869527,-15.15940657,0.00036513,3]
[392149480,1761212869550,-400.0,0.00036513,2]
[392149481,1761212869572,-179.0,0.00036513,3]
[392149482,1761212869594,-32857.5793415,0.00036514,15]
[392149484,1761212892323,1197.77,0.00021675,2]
[392149485,1761212892525,1197.77,0.00022816,2]
[392149486,1761212892710,1197.77,0.00023957,2]
[392149487,1761212892898,1197.77,0.00025097,2]
[392149488,1761212893111,1197.77,0.00026238,2]
[392149489,1761212893314,559.41125193,0.00027379,2]
[392149490,1761212899988,-553.77589332,0.00027379,2]
[392149491,1761212916072,-201.38928142,0.0002,7]
[392149492,1761212929947,-331.37864446,0.000199,2]
[392149493,1761212933265,-300.0,0.000199,2]
[392149494,1761212935203,-89.19640354,0.000199,2]
[392149495,1761212935225,-109.65778268,0.0002,7]
[392149496,1761212937787,-378.94755823,0.0002,7]
[392149497,1761212942038,-300.0,0.00019999,2]
[392149498,1761212942061,-22.52230713,0.0002,7]
[392149499,1761212944214,-285.78371034,0.0002,7]
[392149501,1761212948169,-62000.0,0.0002,7]
[392149502,1761212951119,-44434.25184112,0.0002,7]
[392149503,1761212952977,-6778.44751908,0.0002,7]
[392149504,1761212954108,-200.0,0.00021777,2]
[392149505,1761212954132,-189.71029571,0.00022,2]
[392149506,1761212954177,-5.28970429,0.00022,2]
[392149507,1761212954199,-84.58285475,0.00027379,2]
[392149508,1761212954220,-1197.77,0.0002852,2]
[392149509,1761212954242,-1197.77,0.00029661,2]
[392149510,1761212954263,-1197.77,0.00030801,2]
[392149511,1761212954288,-1197.77,0.00031942,2]
[392149512,1761212954310,-1022.72730544,0.00033083,2]
[392149513,1761212956336,-175.04269456,0.00033083,2]
[392149514,1761212956360,-38.04730544,0.00034224,2]
[392149515,1761212957857,-195.0,0.00034224,2]
[392149516,1761212958095,-964.72269456,0.00034224,2]
[392149517,1761212958117,-1197.77,0.00035365,2]
[392149518,1761212958139,-1197.77,0.00036505,2]
[392149519,1761212958160,-1197.77,0.00037646,2]
[392149520,1761212958184,-600.0,0.0003777,15]
[392149521,1761212958207,-759.7564498,0.00038787,2]
[392149522,1761212968591,3418.75655512,0.00024887,2]
[392149523,1761212968611,4156.56129987,0.00024887,2]
[392149524,1761212977206,-202.35359626,0.00024887,2]
[392149525,1761212982531,-189.78,0.00024887,2]
[392149526,1761212983964,-207.76889484,0.00024887,2]
[392149527,1761212988681,-306.92410812,0.00024887,2]
[392149529,1761213002439,195.0,0.00027376,120]
[392149530,1761213003221,-184.75224072,0.00024887,2]
[392149531,1761213004718,-230.42002038,0.00024887,2]
[392149533,1761213007501,-236.620845,0.00024887,2]
[392149534,1761213012296,-176.25,0.00024887,2]
[392149535,1761213013635,-386.64677937,0.00024887,2]
[392149536,1761213015705,-431.85826948,0.00024887,2]
[392149545,1761213031578,-401.11845863,0.00024887,2]
[392149546,1761213031632,-2460.26274831,0.00024887,2]
[392149547,1761213031643,-12990.0738161,0.0002821,2]
[392149548,1761213031652,-12990.0738161,0.00031532,2]
[392149549,1761213031662,-12990.0738161,0.00034855,2]
[392149550,1761213031672,-155.07,0.00036514,30]
[392149551,1761213031681,-438.0135502,0.00038787,2]
[392149552,1761213031692,-265.76,0.00039654,2]
[392149553,1761213031701,-1197.77,0.00039928,2]
[392149554,1761213031710,-300.0,0.00040055,120]
[392149555,1761213031719,-300.0,0.00040084,120]
[392149556,1761213031728,-195.0,0.00040084,120]
[392149557,1761213031737,-150.0,0.00040488,4]
[392149558,1761213031746,-150.0,0.00040488,4]
[392149559,1761213031755,-150.0,0.00040488,4]
[392149560,1761213031764,-1197.77,0.00041068,2]
[392149561,1761213031773,-200.0,0.00041096,20]
[392149562,1761213031782,-200.0,0.00041096,20]
[392149563,1761213031791,-200.0,0.00041096,20]
[392149564,1761213031800,-200.0,0.00041096,20]
[392149565,1761213031810,-4417.71,0.00041096,2]
[392149566,1761213031819,-9899.38,0.00041096,2]
[392149567,1761213031828,-999.99,0.00041096,2]
[392149568,1761213031838,-168.0,0.00041698,2]
[392149569,1761213031847,-1197.77,0.00042209,2]
[392149570,1761213031856,-254.57,0.00042386,2]
[392149571,1761213031869,-251.6,0.00042848,2]
[392149572,1761213031878,-300.0,0.0004318,4]
[392149573,1761213031891,-508.41303547,0.0004318,31]
[392149574,1761213031901,-508.41303547,0.0004318,31]
[392149575,1761213031910,-508.41303547,0.0004318,31]
[392149576,1761213031919,-508.41303547,0.0004318,31]
[392149577,1761213031929,-508.41303547,0.0004318,31]
[392149578,1761213031938,-508.41303547,0.0004318,31]
[392149579,1761213031947,-508.41303547,0.0004318,31]
[392149580,1761213031957,-508.41303547,0.0004318,31]
[392149581,1761213031966,-508.41303547,0.0004318,31]
[392149582,1761213031976,-508.41303547,0.0004318,31]
[392149583,1761213031985,-508.41303547,0.0004318,31]
[392149584,1761213031994,-508.41303547,0.0004318,31]
[392149585,1761213032005,-508.41303547,0.0004318,31]
[392149587,1761213032015,-508.41303547,0.0004318,31]
[392149589,1761213032025,-508.41303547,0.0004318,31]
[392149591,1761213032035,-508.41303547,0.0004318,31]
[392149593,1761213032045,-508.41303547,0.0004318,31]
[392149595,1761213032055,-508.41303547,0.0004318,31]
[392149598,1761213032064,-508.41303547,0.0004318,31]
[392149601,1761213032073,-508.41303547,0.0004318,31]
[392149603,1761213032082,-508.41303547,0.0004318,31]
[392149604,1761213032092,-508.41303547,0.0004318,31]
[392149605,1761213032102,-508.41303547,0.0004318,31]
[392149606,1761213032112,-508.41303547,0.0004318,31]
[392149607,1761213032121,-508.41303547,0.0004318,31]
[392149608,1761213032130,-508.41303547,0.0004318,31]
[392149609,1761213032140,-508.41303547,0.0004318,31]
[392149610,1761213032149,-508.41303547,0.0004318,31]
[392149611,1761213032159,-508.41303547,0.0004318,31]
[392149612,1761213032169,-508.41303547,0.0004318,31]
[392149613,1761213032179,-508.41303547,0.0004318,31]
[392149614,1761213032188,-508.41303547,0.0004318,31]
[392149615,1761213032198,-508.41303547,0.0004318,31]
[392149616,1761213032207,-508.41303547,0.0004318,31]
[392149617,1761213032217,-508.41303547,0.0004318,31]
[392149618,1761213032226,-508.41303547,0.0004318,31]
[392149619,1761213032235,-508.41303547,0.0004318,31]
[392149620,1761213032244,-508.41303547,0.0004318,31]
[392149621,1761213032254,-508.41303547,0.0004318,31]
[392149622,1761213032263,-508.41303547,0.0004318,31]
[392149623,1761213032274,-508.41303547,0.0004318,31]
[392149624,1761213032283,-508.41303547,0.0004318,31]
[392149625,1761213032292,-508.41303547,0.0004318,31]
[392149626,1761213032301,-508.41303547,0.0004318,31]
[392149627,1761213032311,-508.41303547,0.0004318,31]
[392149628,1761213032322,-508.41303547,0.0004318,31]
[392149629,1761213032332,-508.41303547,0.0004318,31]
[392149630,1761213032341,-508.41303547,0.0004318,31]
[392149631,1761213032351,-508.41303547,0.0004318,31]
[392149632,1761213032362,-508.41303547,0.0004318,31]
[392149633,1761213032371,-508.41303547,0.0004318,31]
[392149634,1761213032381,-508.41303547,0.0004318,31]
[392149635,1761213032390,-500.0,0.0004318,31]
[392149636,1761213032531,-500.0,0.0004318,31]
[392149637,1761213032540,-500.0,0.0004318,31]
[392149638,1761213032550,-500.0,0.0004318,31]
[392149639,1761213032559,-500.0,0.0004318,31]
[392149640,1761213032568,-500.0,0.0004318,31]
[392149641,1761213032577,-500.0,0.0004318,31]
[392149642,1761213032587,-500.0,0.0004318,31]
[392149643,1761213032596,-500.0,0.0004318,31]
[392149644,1761213032605,-500.0,0.0004318,31]
[392149645,1761213032614,-500.0,0.0004318,31]
[392149646,1761213032623,-500.0,0.0004318,31]
[392149647,1761213032632,-500.0,0.0004318,31]
[392149648,1761213032642,-500.0,0.0004318,31]
[392149649,1761213032651,-500.0,0.0004318,31]
[392149650,1761213032661,-500.0,0.0004318,31]
[392149651,1761213032671,-500.0,0.0004318,31]
[392149652,1761213032682,-500.0,0.0004318,31]
[392149653,1761213032692,-500.0,0.0004318,31]
[392149654,1761213032704,-500.0,0.0004318,31]
[392149655,1761213032714,-387.72581326,0.0004318,31]
[392149656,1761213032724,-500.0,0.0004318,31]
[392149657,1761213032734,-500.0,0.0004318,31]
[392149658,1761213032743,-500.0,0.0004318,31]
[392149659,1761213032753,-500.0,0.0004318,31]
[392149660,1761213032763,-500.0,0.0004318,31]
[392149661,1761213032773,-500.0,0.0004318,31]
[392149662,1761213032792,-500.0,0.0004318,31]
[392149663,1761213032802,-500.0,0.0004318,31]
[392149664,1761213032812,-500.0,0.0004318,31]
[392149665,1761213032822,-500.0,0.0004318,31]
[392149666,1761213032832,-500.0,0.0004318,31]
[392149667,1761213032842,-500.0,0.0004318,31]
[392149668,1761213032852,-500.0,0.0004318,31]
[392149669,1761213032861,-499.99999999,0.0004318,31]
[392149670,1761213032871,-1000.0,0.00043181,5]
[392149671,1761213032881,-500.0,0.000432,10]
[392149672,1761213032891,-500.0,0.000432,10]
[392149673,1761213032900,-500.0,0.000432,10]
[392149674,1761213032910,-500.0,0.000432,10]
[392149675,1761213032920,-500.0,0.000432,10]
[392149676,1761213032929,-501.72464827,0.000432,5]
[392149677,1761213032939,-286.27631451,0.000432,2]
[392149678,1761213032949,-375.03172649,0.000432,10]
[392149679,1761213032958,-500.0,0.000432,10]
[392149680,1761213032967,-500.0,0.000432,10]
[392149681,1761213032981,-500.73416328,0.000432,10]
[392149682,1761213032990,-500.0,0.000432,10]
[392149683,1761213033001,-168.0,0.00043296,7]
[392149684,1761213033011,-5000.0,0.00043331,120]
[392149685,1761213033021,-1786.11,0.0004334,2]
[392149686,1761213033030,-1197.77,0.0004335,2]
[392149687,1761213033040,-168.0,0.00043387,2]